fUSD/lending_fUSD_20260529
["ID","MTS","AMOUNT","RATE_DAILY","PERIOD"]
[423343482,1780065057000,-196.12610297,0.00010321,2]
[423343480,1780065057000,-255.0,0.0001032,2]
[423343456,1780065057000,-2461.77405061,9.944e-05,2]
[423343444,1780065057000,-430.0,9.788e-05,2]
[423343453,1780065057000,-385.0,9.91e-05,2]
[423343485,1780065057000,-500.0,0.00010458,2]
[423343430,1780065057000,-1860.0,9.687e-05,2]
[423343429,1780065057000,-15045.0,9.684e-05,2]
[423343428,1780065057000,-11560.0,9.679e-05,2]
[423343431,1780065057000,-545.0,9.687e-05,2]
[423343432,1780065057000,-241.0,9.692e-05,2]
[423343433,1780065057000,-1014.00981787,9.693e-05,2]
[423343438,1780065057000,-1084.0,9.725e-05,2]
[423343437,1780065057000,-293.99712603,9.72e-05,2]
[423343435,1780065057000,-298.0,9.707e-05,2]
[423343442,1780065057000,-465.0,9.75e-05,2]
[423343436,1780065057000,-369.0,9.711e-05,2]
[423343455,1780065057000,-193.0,9.944e-05,2]
[423343439,1780065057000,-292.0,9.73e-05,2]
[423343441,1780065057000,-640.0,9.745e-05,2]
[423343434,1780065057000,-1416.0,9.706e-05,2]
[423343443,1780065057000,-438.0,9.769e-05,2]
[423343446,1780065057000,-500.0,9.828e-05,2]
[423343445,1780065057000,-455.0,9.807e-05,2]
[423343447,1780065057000,-180.0,9.832e-05,2]
[423343449,1780065057000,-182.0,9.851e-05,2]
[423343454,1780065057000,-1431.0,9.93e-05,2]
[423343452,1780065057000,-160.42,9.905e-05,2]
[423343448,1780065057000,-16280.0,9.84e-05,2]
[423343451,1780065057000,-1082.0,9.89e-05,2]
[423343450,1780065057000,-598.0,9.871e-05,2]
[423343440,1780065057000,-555.0,9.744e-05,2]
[423343483,1780065057000,-250.0,0.00010321,2]
[423343505,1780065057000,-500.0,0.00010924,2]
[423343487,1780065057000,-193.0,0.00010486,2]
[423343520,1780065057000,-1847.81,0.00011133,2]
[423343519,1780065057000,-11981.31797714,0.00011099,2]
[423343521,1780065057000,-190.96,0.00011138,2]
[423343522,1780065057000,-1847.81,0.00011191,2]
[423343523,1780065057000,-304.36664305,0.00011198,2]
[423343526,1780065057000,-1847.81,0.00011308,2]
[423343524,1780065057000,-1847.81,0.0001125,2]
[423343517,1780065057000,-1847.81,0.00011075,2]
[423343525,1780065057000,-11981.31797714,0.00011295,2]
[423343527,1780065057000,-625.79,0.00011322,2]
[423343528,1780065057000,-587.0,0.00011352,2]
[423343533,1780065057000,-1847.81,0.00011424,2]
[423343518,1780065057000,-11981.31797714,0.00011099,2]
[423343534,1780065057000,-1847.81,0.00011482,2]
[423343535,1780065057000,-200.0,0.000115,2]
[423343531,1780065057000,-1847.81,0.00011366,2]
[423343532,1780065057000,-646.68867472,0.000114,2]
[423343536,1780065057000,-1847.81,0.0001154,2]
[423343538,1780065057000,-625.79,0.00011598,2]
[423343530,1780065057000,-433.0,0.00011352,2]
[423343484,1780065057000,-500.0,0.00010376,2]
[423343540,1780065057000,-200.0,0.00011615,2]
[423343542,1780065057000,-200.0,0.00011731,2]
[423343539,1780065057000,-219.4267048,0.00011607,2]
[423343541,1780065057000,-190.96,0.00011668,2]
[423343543,1780065057000,-200.0,0.00011848,2]
[423343529,1780065057000,-2351.0,0.00011352,2]
[423343516,1780065057000,-625.79,0.00011046,2]
[423343537,1780065057000,-1847.81,0.00011598,2]
[423343512,1780065057000,-1776.0,0.00011014,2]
[423343513,1780065057000,-17522.0,0.00011014,2]
[423343486,1780065057000,-250.0,0.00010458,2]
[423343488,1780065057000,-5086.90624348,0.00010486,2]
[423343490,1780065057000,-2000.0,0.00010524,2]
[423343489,1780065057000,-1847.81,0.00010494,2]
[423343493,1780065057000,-1847.81,0.0001061,2]
[423343492,1780065057000,-190.96,0.00010607,2]
[423343495,1780065057000,-1847.81,0.00010668,2]
[423343494,1780065057000,-500.0,0.0001065,2]
[423343496,1780065057000,-210619.91171029,0.000107,2]
[423343497,1780065057000,-170.49062066,0.00010704,2]
[423343500,1780065057000,-1000.0,0.00010783,2]
[423343498,1780065057000,-1847.81,0.00010726,2]
[423343491,1780065057000,-1847.81,0.00010552,2]
[423343501,1780065057000,-1847.81,0.00010785,2]
[423343499,1780065057000,-1000.0,0.00010783,2]
[423343509,1780065057000,-150.0,0.00010959,2]
[423343514,1780065057000,-1847.81,0.00011017,2]
[423343508,1780065057000,-150.0,0.00010959,2]
[423343507,1780065057000,-500.0,0.00010958,2]
[423343511,1780065057000,-5519.0,0.00011014,2]
[423343515,1780065057000,-275797.74,0.00011046,2]
[423343504,1780065057000,-1847.81,0.00010901,2]
[423343503,1780065057000,-1847.81,0.00010843,2]
[423343502,1780065057000,-640.0,0.00010827,2]
[423343506,1780065057000,-500.0,0.00010958,2]
[423343510,1780065057000,-1847.81,0.00010959,2]
[423343564,1780065058000,-190.96,0.00012729,2]
[423343579,1780065058000,-500.0,0.00013151,2]
[423343563,1780065058000,-11981.31797714,0.00012496,2]
[423343569,1780065058000,-501.82701672,0.00013151,2]
[423343566,1780065058000,-300.0,0.00013,2]
[423343571,1780065058000,-500.0,0.00013151,2]
[423343576,1780065058000,-500.0,0.00013151,2]
[423343574,1780065058000,-500.0,0.00013151,2]
[423343575,1780065058000,-500.0,0.00013151,2]
[423343583,1780065058000,-1209.0,0.00013151,2]
[423343584,1780065058000,-500.0,0.00013151,2]
[423343578,1780065058000,-500.0,0.00013151,2]
[423343577,1780065058000,-500.0,0.00013151,2]
[423343580,1780065058000,-500.0,0.00013151,2]
[423343581,1780065058000,-500.0,0.00013151,2]
[423343586,1780065058000,-500.0,0.00013151,2]
[423343594,1780065058000,-1209.0,0.00013151,2]
[423343595,1780065058000,-1209.0,0.00013151,2]
[423343567,1780065058000,-11981.31797714,0.00013097,2]
[423343582,1780065058000,-500.0,0.00013151,2]
[423343565,1780065058000,-640.0,0.00012993,2]
[423343550,1780065058000,-1901.5630616,0.00012092,2]
[423343568,1780065058000,-500.0,0.00013151,2]
[423343593,1780065058000,-1209.0,0.00013151,2]
[423343544,1780065058000,-625.79,0.00011875,2]
[423343546,1780065058000,-11981.31797714,0.00011896,2]
[423343545,1780065058000,-191.0,0.00011875,2]
[423343547,1780065058000,-640.0,0.0001191,2]
[423343548,1780065058000,-200.0,0.00011967,2]
[423343549,1780065058000,-29518.55,0.00012055,2]
[423343551,1780065058000,-625.79,0.00012151,2]
[423343552,1780065058000,-22207.83321406,0.00012184,2]
[423343572,1780065058000,-500.0,0.00013151,2]
[423343561,1780065058000,-736.0,0.00012487,2]
[423343553,1780065058000,-2985.53216651,0.00012184,2]
[423343559,1780065058000,-823.0,0.00012487,2]
[423343555,1780065058000,-170.99392172,0.00012207,2]
[423343558,1780065058000,-250.0,0.00012398,2]
[423343556,1780065058000,-409.79974205,0.00012208,2]
[423343557,1780065058000,-863.33,0.00012329,2]
[423343560,1780065058000,-3292.0,0.00012487,2]
[423343562,1780065058000,-14756.4578142,0.00012493,2]
[423343573,1780065058000,-500.0,0.00013151,2]
[423343554,1780065058000,-190.96,0.00012198,2]
[423343591,1780065058000,-338.49928632,0.00013151,2]
[423343570,1780065058000,-500.0,0.00013151,2]
[423343592,1780065058000,-500.0,0.00013151,2]
[423343614,1780065058000,-500.0,0.00013151,2]
[423343618,1780065058000,-500.0,0.00013151,2]
[423343621,1780065058000,-500.0,0.00013151,2]
[423343616,1780065058000,-1209.0,0.00013151,2]
[423343615,1780065058000,-500.0,0.00013151,2]
[423343613,1780065058000,-500.0,0.00013151,2]
[423343622,1780065058000,-1209.0,0.00013151,2]
[423343623,1780065058000,-500.0,0.00013151,2]
[423343625,1780065058000,-500.0,0.00013151,2]
[423343620,1780065058000,-613.32450504,0.00013151,2]
[423343631,1780065058000,-500.0,0.00013151,2]
[423343624,1780065058000,-1209.0,0.00013151,2]
[423343627,1780065058000,-500.0,0.00013151,2]
[423343626,1780065058000,-500.0,0.00013151,2]
[423343630,1780065058000,-573.0,0.00013151,2]
[423343632,1780065058000,-500.0,0.00013151,2]
[423343628,1780065058000,-573.0,0.00013151,2]
[423343633,1780065058000,-573.0,0.00013151,2]
[423343634,1780065058000,-500.0,0.00013151,2]
[423343590,1780065058000,-1209.0,0.00013151,2]
[423343629,1780065058000,-1209.0,0.00013151,2]
[423343612,1780065058000,-500.0,0.00013151,2]
[423343617,1780065058000,-500.0,0.00013151,2]
[423343619,1780065058000,-1209.0,0.00013151,2]
[423343587,1780065058000,-1209.0,0.00013151,2]
[423343589,1780065058000,-411.08460741,0.00013151,2]
[423343611,1780065058000,-1209.0,0.00013151,2]
[423343585,1780065058000,-500.0,0.00013151,2]
[423343596,1780065058000,-500.0,0.00013151,2]
[423343597,1780065058000,-1209.0,0.00013151,2]
[423343599,1780065058000,-1209.0,0.00013151,2]
[423343598,1780065058000,-500.0,0.00013151,2]
[423343604,1780065058000,-500.0,0.00013151,2]
[423343607,1780065058000,-500.0,0.00013151,2]
[423343588,1780065058000,-500.0,0.00013151,2]
[423343608,1780065058000,-1209.0,0.00013151,2]
[423343600,1780065058000,-500.0,0.00013151,2]
[423343609,1780065058000,-500.0,0.00013151,2]
[423343601,1780065058000,-1209.0,0.00013151,2]
[423343602,1780065058000,-500.0,0.00013151,2]
[423343610,1780065058000,-500.0,0.00013151,2]
[423343635,1780065058000,-573.0,0.00013151,2]
[423343603,1780065058000,-1209.0,0.00013151,2]
[423343605,1780065058000,-1209.0,0.00013151,2]
[423343606,1780065058000,-500.0,0.00013151,2]
[423343652,1780065059000,-573.0,0.00013151,2]
[423343645,1780065059000,-461.3621659,0.00013151,2]
[423343651,1780065059000,-573.0,0.00013151,2]
[423343649,1780065059000,-1209.0,0.00013151,2]
[423343648,1780065059000,-573.0,0.00013151,2]
[423343642,1780065059000,-573.0,0.00013151,2]
[423343643,1780065059000,-500.0,0.00013151,2]
[423343639,1780065059000,-500.0,0.00013151,2]
[423343644,1780065059000,-573.0,0.00013151,2]
[423343640,1780065059000,-573.0,0.00013151,2]
[423343641,1780065059000,-500.0,0.00013151,2]
[423343638,1780065059000,-573.0,0.00013151,2]
[423343637,1780065059000,-1209.0,0.00013151,2]
[423343636,1780065059000,-573.0,0.00013151,2]
[423343653,1780065059000,-573.0,0.00013151,2]
[423343646,1780065059000,-573.0,0.00013151,2]
[423343650,1780065059000,-573.0,0.00013151,2]
[423343647,1780065059000,-573.0,0.00013151,2]
[423343657,1780065059000,-1209.0,0.00013151,2]
[423343654,1780065059000,-573.0,0.00013151,2]
[423343670,1780065059000,-546.70095978,0.00013151,2]
[423343671,1780065059000,-500.0,0.00013151,2]
[423343672,1780065059000,-500.0,0.00013151,2]
[423343669,1780065059000,-573.0,0.00013151,2]
[423343667,1780065059000,-1209.0,0.00013151,2]
[423343666,1780065059000,-500.0,0.00013151,2]
[423343662,1780065059000,-573.0,0.00013151,2]
[423343661,1780065059000,-500.0,0.00013151,2]
[423343668,1780065059000,-500.0,0.00013151,2]
[423343665,1780065059000,-500.0,0.00013151,2]
[423343660,1780065059000,-150.0,0.00013151,2]
[423343663,1780065059000,-500.0,0.00013151,2]
[423343659,1780065059000,-362.24079347,0.00013151,2]
[423343658,1780065059000,-573.0,0.00013151,2]
[423343655,1780065059000,-150.0,0.00013151,2]
[423343664,1780065059000,-500.0,0.00013151,2]
[423343656,1780065059000,-228.87055429,0.00013151,2]
[423343713,1780065060000,-150.0,0.00013664,2]
[423343710,1780065060000,-150.0,0.00013654,2]
[423343707,1780065060000,-150.0,0.0001363,2]
[423343708,1780065060000,-150.0,0.00013638,2]
[423343704,1780065060000,-150.0,0.0001362,2]
[423343706,1780065060000,-211.98336987,0.00013624,2]
[423343705,1780065060000,-150.0,0.0001362,2]
[423343699,1780065060000,-211.98336987,0.00013578,2]
[423343712,1780065060000,-150.0,0.00013664,2]
[423343698,1780065060000,-150.0,0.00013576,2]
[423343709,1780065060000,-211.98336987,0.00013639,2]
[423343714,1780065060000,-150.0,0.00013666,2]
[423343715,1780065060000,-211.98336987,0.00013669,2]
[423343722,1780065060000,-500.0,0.00013698,2]
[423343726,1780065060000,-500.0,0.00013698,2]
[423343725,1780065060000,-500.0,0.00013698,2]
[423343720,1780065060000,-500.0,0.00013698,2]
[423343717,1780065060000,-1197.38478696,0.00013697,3]
[423343723,1780065060000,-500.0,0.00013698,2]
[423343719,1780065060000,-500.0,0.00013698,2]
[423343700,1780065060000,-211.98336987,0.00013594,2]
[423343721,1780065060000,-500.0,0.00013698,2]
[423343724,1780065060000,-500.0,0.00013698,2]
[423343718,1780065060000,-500.0,0.00013698,2]
[423343716,1780065060000,-211.98336987,0.00013684,2]
[423343711,1780065060000,-211.98336987,0.00013654,2]
[423343701,1780065060000,-150.0,0.00013595,2]
[423343691,1780065060000,-150.0,0.00013532,2]
[423343702,1780065060000,-211.98336987,0.00013609,2]
[423343727,1780065060000,-500.0,0.00013698,2]
[423343677,1780065060000,-150.0,0.00013488,2]
[423343673,1780065060000,-403.39597363,0.00013151,2]
[423343674,1780065060000,-573.0,0.00013151,2]
[423343675,1780065060000,-190.96,0.00013259,2]
[423343678,1780065060000,-150.0,0.00013488,2]
[423343676,1780065060000,-14756.4578142,0.00013295,2]
[423343680,1780065060000,-150.0,0.00013488,2]
[423343679,1780065060000,-150.0,0.00013488,2]
[423343682,1780065060000,-150.0,0.00013488,2]
[423343692,1780065060000,-211.98336987,0.00013533,2]
[423343681,1780065060000,-150.0,0.00013488,2]
[423343683,1780065060000,-150.0,0.00013488,2]
[423343686,1780065060000,-1000.0,0.000135,2]
[423343687,1780065060000,-211.98336987,0.00013503,2]
[423343684,1780065060000,-211.98336987,0.00013488,2]
[423343685,1780065060000,-150.0,0.00013488,2]
[423343688,1780065060000,-211.98336987,0.00013518,2]
[423343689,1780065060000,-150.0,0.00013523,2]
[423343690,1780065060000,-150.0,0.00013532,2]
[423343694,1780065060000,-150.0,0.00013559,2]
[423343693,1780065060000,-211.98336987,0.00013548,2]
[423343695,1780065060000,-150.0,0.00013563,2]
[423343696,1780065060000,-211.98336987,0.00013563,2]
[423343697,1780065060000,-150.0,0.00013576,2]
[423343703,1780065060000,-150.0,0.00013613,2]
[423343737,1780065060000,-790.52,0.00013698,2]
[423343740,1780065060000,-790.52,0.00013698,2]
[423343729,1780065060000,-500.0,0.00013698,2]
[423343760,1780065060000,-500.0,0.00013698,2]
[423343763,1780065060000,-500.0,0.00013698,2]
[423343765,1780065060000,-500.0,0.00013698,2]
[423343769,1780065060000,-552.49862501,0.00013698,2]
[423343768,1780065060000,-500.0,0.00013698,2]
[423343767,1780065060000,-500.0,0.00013698,2]
[423343762,1780065060000,-500.0,0.00013698,2]
[423343764,1780065060000,-500.0,0.00013698,2]
[423343770,1780065060000,-500.0,0.00013698,2]
[423343772,1780065060000,-500.0,0.00013698,2]
[423343766,1780065060000,-500.0,0.00013698,2]
[423343775,1780065060000,-500.0,0.00013698,2]
[423343773,1780065060000,-500.0,0.00013698,2]
[423343776,1780065060000,-500.0,0.00013698,2]
[423343774,1780065060000,-500.0,0.00013698,2]
[423343777,1780065060000,-500.0,0.00013698,2]
[423343778,1780065060000,-500.0,0.00013698,2]
[423343783,1780065060000,-500.0,0.00013698,2]
[423343782,1780065060000,-500.0,0.00013698,2]
[423343781,1780065060000,-500.0,0.00013698,2]
[423343780,1780065060000,-500.0,0.00013698,2]
[423343779,1780065060000,-500.0,0.00013698,2]
[423343784,1780065060000,-504.79942996,0.00013698,2]
[423343728,1780065060000,-500.0,0.00013698,2]
[423343785,1780065060000,-542.96,0.00013698,2]
[423343755,1780065060000,-500.0,0.00013698,2]
[423343759,1780065060000,-500.0,0.00013698,2]
[423343771,1780065060000,-500.0,0.00013698,2]
[423343757,1780065060000,-500.0,0.00013698,2]
[423343734,1780065060000,-500.0,0.00013698,2]
[423343730,1780065060000,-500.0,0.00013698,2]
[423343758,1780065060000,-500.0,0.00013698,2]
[423343731,1780065060000,-500.0,0.00013698,2]
[423343732,1780065060000,-500.0,0.00013698,2]
[423343733,1780065060000,-500.0,0.00013698,2]
[423343736,1780065060000,-549.86590822,0.00013698,2]
[423343735,1780065060000,-500.0,0.00013698,2]
[423343739,1780065060000,-790.52,0.00013698,2]
[423343749,1780065060000,-1012.72,0.00013698,2]
[423343741,1780065060000,-790.52,0.00013698,2]
[423343743,1780065060000,-790.52,0.00013698,2]
[423343746,1780065060000,-1012.72,0.00013698,2]
[423343738,1780065060000,-790.52,0.00013698,2]
[423343754,1780065060000,-500.0,0.00013698,2]
[423343747,1780065060000,-1012.72,0.00013698,2]
[423343748,1780065060000,-1012.72,0.00013698,2]
[423343744,1780065060000,-790.52,0.00013698,2]
[423343742,1780065060000,-790.52,0.00013698,2]
[423343750,1780065060000,-1012.72,0.00013698,2]
[423343752,1780065060000,-1012.72,0.00013698,2]
[423343751,1780065060000,-1012.72,0.00013698,2]
[423343761,1780065060000,-500.0,0.00013698,2]
[423343745,1780065060000,-375.06971065,0.00013698,2]
[423343753,1780065060000,-1012.72,0.00013698,2]
[423343756,1780065060000,-500.0,0.00013698,2]
[423343822,1780065061000,-552.61,0.00013698,2]
[423343825,1780065061000,-552.61,0.00013698,2]
[423343821,1780065061000,-552.61,0.00013698,2]
[423343820,1780065061000,-552.61,0.00013698,2]
[423343812,1780065061000,-500.0,0.00013698,2]
[423343824,1780065061000,-552.61,0.00013698,2]
[423343819,1780065061000,-552.61,0.00013698,2]
[423343813,1780065061000,-500.0,0.00013698,2]
[423343826,1780065061000,-552.61,0.00013698,2]
[423343814,1780065061000,-500.0,0.00013698,2]
[423343823,1780065061000,-552.61,0.00013698,2]
[423343827,1780065061000,-191.08440953,0.00013698,2]
[423343841,1780065061000,-500.0,0.00013698,2]
[423343830,1780065061000,-903.67,0.00013698,2]
[423343829,1780065061000,-903.67,0.00013698,2]
[423343835,1780065061000,-903.67,0.00013698,2]
[423343838,1780065061000,-500.0,0.00013698,2]
[423343831,1780065061000,-903.67,0.00013698,2]
[423343837,1780065061000,-500.0,0.00013698,2]
[423343833,1780065061000,-903.67,0.00013698,2]
[423343839,1780065061000,-500.0,0.00013698,2]
[423343840,1780065061000,-500.0,0.00013698,2]
[423343832,1780065061000,-903.67,0.00013698,2]
[423343836,1780065061000,-500.0,0.00013698,2]
[423343815,1780065061000,-500.0,0.00013698,2]
[423343828,1780065061000,-903.67,0.00013698,2]
[423343816,1780065061000,-500.0,0.00013698,2]
[423343791,1780065061000,-500.0,0.00013698,2]
[423343808,1780065061000,-500.0,0.00013698,2]
[423343834,1780065061000,-903.67,0.00013698,2]
[423343795,1780065061000,-500.0,0.00013698,2]
[423343789,1780065061000,-542.96,0.00013698,2]
[423343787,1780065061000,-542.96,0.00013698,2]
[423343790,1780065061000,-542.96,0.00013698,2]
[423343792,1780065061000,-500.0,0.00013698,2]
[423343793,1780065061000,-379.10073076,0.00013698,2]
[423343788,1780065061000,-542.96,0.00013698,2]
[423343794,1780065061000,-500.0,0.00013698,2]
[423343786,1780065061000,-542.96,0.00013698,2]
[423343797,1780065061000,-500.0,0.00013698,2]
[423343796,1780065061000,-500.0,0.00013698,2]
[423343817,1780065061000,-500.0,0.00013698,2]
[423343799,1780065061000,-500.0,0.00013698,2]
[423343800,1780065061000,-500.0,0.00013698,2]
[423343801,1780065061000,-500.0,0.00013698,2]
[423343803,1780065061000,-500.0,0.00013698,2]
[423343802,1780065061000,-500.0,0.00013698,2]
[423343804,1780065061000,-500.0,0.00013698,2]
[423343805,1780065061000,-500.0,0.00013698,2]
[423343806,1780065061000,-500.0,0.00013698,2]
[423343807,1780065061000,-500.0,0.00013698,2]
[423343810,1780065061000,-500.0,0.00013698,2]
[423343811,1780065061000,-500.0,0.00013698,2]
[423343818,1780065061000,-529.19931579,0.00013698,2]
[423343809,1780065061000,-500.0,0.00013698,2]
[423343798,1780065061000,-500.0,0.00013698,2]
[423343842,1780065061000,-11981.31797714,0.00013698,2]
[423343849,1780065061000,-1461.0,0.00013699,2]
[423343851,1780065061000,-1461.0,0.00013699,2]
[423343875,1780065061000,-211.98336987,0.00013715,2]
[423343874,1780065061000,-150.0,0.00013712,2]
[423343873,1780065061000,-150.0,0.00013708,2]
[423343879,1780065061000,-4609.0,0.00013736,2]
[423343886,1780065061000,-150.0,0.00013773,2]
[423343887,1780065061000,-211.98336987,0.00013775,2]
[423343888,1780065061000,-150.0,0.00013787,2]
[423343890,1780065061000,-211.98336987,0.0001379,2]
[423343889,1780065061000,-190.96,0.00013789,2]
[423343880,1780065061000,-150.0,0.00013737,2]
[423343881,1780065061000,-150.0,0.00013737,2]
[423343884,1780065061000,-150.0,0.00013752,2]
[423343882,1780065061000,-211.98336987,0.00013745,2]
[423343883,1780065061000,-150.0,0.00013752,2]
[423343885,1780065061000,-211.98336987,0.0001376,2]
[423343893,1780065061000,-790.52,0.000138,2]
[423343891,1780065061000,-150.0,0.00013796,2]
[423343892,1780065061000,-150.0,0.00013796,2]
[423343900,1780065061000,-150.0,0.00013809,2]
[423343894,1780065061000,-1012.72,0.000138,2]
[423343897,1780065061000,-903.67,0.000138,2]
[423343899,1780065061000,-211.98336987,0.00013806,2]
[423343895,1780065061000,-500.0,0.000138,2]
[423343898,1780065061000,-500.0,0.000138,10]
[423343901,1780065061000,-150.0,0.00013821,2]
[423343876,1780065061000,-211.98336987,0.0001373,2]
[423343871,1780065061000,-150.0,0.00013702,2]
[423343896,1780065061000,-552.61,0.000138,2]
[423343869,1780065061000,-1480.75333503,0.00013699,2]
[423343878,1780065061000,-1152.0,0.00013736,2]
[423343848,1780065061000,-1461.0,0.00013699,2]
[423343845,1780065061000,-200.0,0.00013699,2]
[423343852,1780065061000,-1461.0,0.00013699,2]
[423343843,1780065061000,-166.66,0.00013699,2]
[423343853,1780065061000,-1461.0,0.00013699,2]
[423343846,1780065061000,-1461.0,0.00013699,2]
[423343847,1780065061000,-1461.0,0.00013699,2]
[423343850,1780065061000,-1461.0,0.00013699,2]
[423343854,1780065061000,-1461.0,0.00013699,2]
[423343855,1780065061000,-1461.0,0.00013699,2]
[423343857,1780065061000,-1461.0,0.00013699,2]
[423343858,1780065061000,-1461.0,0.00013699,2]
[423343844,1780065061000,-2500.0,0.00013699,2]
[423343861,1780065061000,-1461.0,0.00013699,2]
[423343867,1780065061000,-1461.0,0.00013699,2]
[423343872,1780065061000,-150.0,0.00013708,2]
[423343870,1780065061000,-211.98336987,0.000137,2]
[423343877,1780065061000,-1252.0,0.00013735,2]
[423343859,1780065061000,-1461.0,0.00013699,2]
[423343866,1780065061000,-1461.0,0.00013699,2]
[423343868,1780065061000,-1461.0,0.00013699,2]
[423343864,1780065061000,-1461.0,0.00013699,2]
[423343862,1780065061000,-1461.0,0.00013699,2]
[423343863,1780065061000,-1461.0,0.00013699,2]
[423343860,1780065061000,-1461.0,0.00013699,2]
[423343856,1780065061000,-1461.0,0.00013699,2]
[423343865,1780065061000,-1461.0,0.00013699,2]
[423343948,1780065062000,-150.0,0.00014059,2]
[423343939,1780065062000,-250.0,0.00014,2]
[423343940,1780065062000,-211.98336987,0.00014002,2]
[423343938,1780065062000,-265.75961111,0.00014,30]
[423343930,1780065062000,-150.0,0.00013973,2]
[423343929,1780065062000,-150.0,0.00013973,2]
[423343933,1780065062000,-150.0,0.00013987,2]
[423343928,1780065062000,-211.98336987,0.00013972,2]
[423343931,1780065062000,-166.66,0.00013973,2]
[423343937,1780065062000,-730.52382445,0.0001399,2]
[423343942,1780065062000,-150.0,0.00014017,2]
[423343947,1780065062000,-211.98336987,0.00014048,2]
[423343945,1780065062000,-150.0,0.00014023,2]
[423343941,1780065062000,-150.0,0.00014012,2]
[423343943,1780065062000,-150.0,0.00014017,2]
[423343944,1780065062000,-211.98336987,0.00014017,2]
[423343932,1780065062000,-150.0,0.00013987,2]
[423343960,1780065062000,-166.66,0.0001411,2]
[423343959,1780065062000,-211.98336987,0.00014108,2]
[423343951,1780065062000,-211.98336987,0.00014063,2]
[423343949,1780065062000,-150.0,0.00014061,2]
[423343950,1780065062000,-150.0,0.00014061,2]
[423343953,1780065062000,-150.0,0.00014087,2]
[423343952,1780065062000,-211.98336987,0.00014078,2]
[423343955,1780065062000,-150.0,0.00014094,2]
[423343946,1780065062000,-211.98336987,0.00014033,2]
[423343927,1780065062000,-211.98336987,0.00013957,2]
[423343920,1780065062000,-150.0,0.00013916,2]
[423343936,1780065062000,-211.98336987,0.00013987,2]
[423343957,1780065062000,-150.0,0.00014105,2]
[423343902,1780065062000,-211.98336987,0.00013821,2]
[423343908,1780065062000,-211.98336987,0.00013851,2]
[423343910,1780065062000,-150.0,0.00013862,2]
[423343909,1780065062000,-150.0,0.00013862,2]
[423343911,1780065062000,-150.0,0.00013862,2]
[423343912,1780065062000,-211.98336987,0.00013866,2]
[423343905,1780065062000,-150.0,0.0001384,2]
[423343904,1780065062000,-211.98336987,0.00013836,2]
[423343903,1780065062000,-166.66,0.00013836,2]
[423343906,1780065062000,-150.0,0.0001384,2]
[423343907,1780065062000,-150.0,0.00013844,2]
[423343913,1780065062000,-150.0,0.0001388,2]
[423343914,1780065062000,-211.98336987,0.00013881,2]
[423343921,1780065062000,-211.98336987,0.00013927,2]
[423343915,1780065062000,-150.0,0.00013884,2]
[423343917,1780065062000,-211.98336987,0.00013896,2]
[423343916,1780065062000,-150.0,0.00013884,2]
[423343919,1780065062000,-211.98336987,0.00013912,2]
[423343923,1780065062000,-150.0,0.00013928,2]
[423343924,1780065062000,-150.0,0.00013937,2]